bitfinex/quotes_ETHUSD_20241119
["timestamp","ask_amount","ask_price","bid_price","bid_amount"]
[1731990267783,3.16757,3157.0,3155.1,3.0607114]
[1731990267784,3.16783,3156.8,3156.1,3.16837]
[1731990267975,0.317757,3156.9,3156.1,3.16837]
[1731990268320,3.16791,3156.7,3156.0,3.16853]
[1731990268893,3.16813,3156.5,3155.6,3.16888]
[1731990269117,3.95741,3156.2,3155.4,3.16908]
[1731990269275,0.789,3156.2,3155.3,3.1692]
[1731990269486,0.789,3156.2,3155.5,3.16898]
[1731990270016,0.789,3156.2,3155.6,0.3169]
[1731990270913,0.789,3156.2,3155.6,3.48586]
[1731990271271,0.789,3156.2,3155.7,3.48575]
[1731990271495,0.789,3156.2,3155.7,0.3169]
[1731990271694,0.395727,3156.1,3155.7,0.3169]
[1731990272238,0.395727,3156.1,3155.6,0.3169]
[1731990272940,3.95736,3156.2,3155.6,0.3169]
[1731990273147,3.95736,3156.2,3155.6,3.48585]
[1731990273939,0.789,3156.2,3155.6,3.48585]
[1731990274298,0.789,3156.2,3155.7,0.3169]
[1731990274496,0.789,3156.2,3155.7,3.48571]
[1731990274729,1.184727,3156.2,3155.7,3.48571]
[1731990275911,1.184727,3156.2,3155.9,0.3169]
[1731990276225,0.789,3156.2,3155.9,0.3169]
[1731990278538,0.789,3156.2,3155.7,0.3169]
[1731990279238,0.789,3156.2,3155.7,3.48576]
[1731990279424,1.21782184,3156.2,3155.7,3.48576]
[1731990281551,1.21782184,3156.2,3155.9,0.3169]
[1731990281759,0.789,3156.2,3155.9,0.3169]
[1731990282113,0.789,3156.2,3155.9,3.48556]
[1731990282313,0.789,3156.2,3155.9,0.3169]
[1731990282614,0.789,3156.2,3156.1,0.3169]
[1731990283826,0.789,3156.2,3156.1,3.48536]
[1731990284369,0.789,3156.2,3156.1,0.3169]
[1731990284923,0.33095839,3156.4,3156.2,0.3169]
[1731990285123,0.33095839,3156.4,3156.3,3.48516]
[1731990291986,0.33095839,3156.4,3156.3,0.3169]
[1731990292844,0.33095839,3156.4,3156.3,3.48516]
[1731990293250,0.70373559,3156.4,3156.3,0.3169]
[1731990293456,4.00590169,3156.4,3156.3,0.3169]
[1731990293666,0.70373559,3156.4,3156.3,0.3169]
[1731990294377,0.70373559,3156.4,3156.1,0.3169]
[1731990294585,3.30724606,3156.2,3156.1,0.3169]
[1731990295387,0.54301349,3156.3,3155.9,0.3169]
[1731990295591,0.7747,3156.0,3155.9,0.3169]
[1731990295793,4.08323011,3156.0,3155.9,0.3169]
[1731990296154,4.41418458,3156.0,3155.8,0.3169]
[1731990296357,3.30853011,3155.9,3155.8,0.3169]
[1731990296612,3.30853011,3155.9,3155.8,3.48566]
[1731990296782,3.30853011,3155.9,3155.8,0.3169]
[1731990297050,3.30853011,3155.9,3155.8,3.48566]
[1731990297397,3.31083683,3155.9,3155.8,3.48566]
[1731990298691,3.96259933,3156.1,3155.8,3.48566]
[1731990298897,3.97344178,3156.1,3156.0,0.3169]
[1731990299052,4.78534178,3156.2,3156.0,0.3169]
[1731990299258,3.97344178,3156.1,3156.0,0.3169]
[1731990299556,3.97384094,3156.1,3156.0,0.3169]
[1731990300071,3.9738968,3156.1,3156.0,0.3169]
[1731990300901,0.53288103,3156.1,3155.8,0.3169]
[1731990301197,3.97397167,3156.0,3155.8,0.3169]
[1731990302008,3.97397167,3156.0,3155.9,3.48556]
[1731990302152,3.97397167,3156.1,3156.0,0.3169]
[1731990302497,0.8119,3156.2,3156.0,0.3169]
[1731990302852,0.8119,3156.2,3156.1,3.16886]
[1731990303057,4.63621293,3156.4,3156.1,3.16886]
[1731990303301,3.9735214,3156.3,3156.1,3.16886]
[1731990303602,3.9735214,3156.3,3156.2,0.3169]
[1731990304496,4.63577497,3156.5,3156.2,0.3169]
[1731990304700,1.16169,3156.6,3156.2,0.3169]
[1731990304701,3.97537125,3156.3,3156.2,3.48524]
[1731990305374,4.63577497,3156.5,3156.2,3.48524]
[1731990305577,4.63577497,3156.5,3155.9,3.16863]
[1731990305578,4.63577497,3156.4,3156.3,0.3169]
[1731990306382,4.64327313,3156.4,3156.3,0.3169]
[1731990306599,4.64327313,3156.4,3156.2,0.3169]
[1731990307468,4.64327313,3156.4,3156.2,3.48525]
[1731990308181,4.64327313,3156.4,3156.1,3.16843]
[1731990308182,4.64327313,3156.4,3156.3,3.48516]
[1731990310479,6.24410918,3156.6,3156.3,3.48516]
[1731990312063,5.47600918,3156.5,3156.3,3.48516]
[1731990312279,6.8685201,3156.6,3156.3,3.48516]
[1731990312686,6.88145956,3156.6,3156.3,3.48516]
[1731990313308,6.88145956,3156.6,3156.2,3.48525]
[1731990313463,4.646684,3156.3,3156.2,3.48525]
[1731990313667,4.646684,3156.4,3156.2,3.48525]
[1731990313905,4.646684,3156.4,3156.3,3.48516]
[1731990315873,4.646684,3156.5,3156.4,3.48506]
[1731990316180,4.646684,3156.7,3156.5,3.48496]
[1731990316382,4.646684,3156.7,3156.6,3.48486]
[1731990316710,7.30101626,3157.3,3156.6,3.48486]
[1731990316711,4.646684,3156.9,3156.6,3.48486]
[1731990316908,4.646684,3157.1,3156.9,0.3169]
[1731990317113,6.24044864,3157.3,3156.9,0.3169]
[1731990317114,4.646684,3157.0,3156.9,0.3169]
[1731990317480,4.64474635,3157.0,3156.9,0.3169]
[1731990317970,5.10922099,3157.0,3156.8,0.3169]
[1731990318170,0.7834,3156.9,3156.8,0.3169]
[1731990318489,3.95106,3156.9,3156.8,0.3169]
[1731990318693,5.36431909,3156.9,3156.8,0.3169]
[1731990319066,2.19665909,3156.9,3156.2,3.48524]
[1731990319269,4.64492174,3156.5,3156.2,3.48524]
[1731990319515,4.64492174,3156.4,3156.2,0.3169]
[1731990319873,4.64492174,3156.5,3156.2,0.3169]
[1731990320403,0.89207872,3156.6,3156.2,3.48524]
[1731990320586,5.75292717,3156.8,3156.2,3.48524]
[1731990320786,8.92069717,3156.8,3156.2,3.48524]
[1731990321520,5.75292717,3156.8,3156.2,3.48524]
[1731990321908,8.92076717,3156.8,3156.2,3.48524]
[1731990322073,1.28718572,3156.7,3156.2,3.48524]
[1731990322972,1.28718572,3156.7,3156.0,3.16854]
[1731990322973,9.9423131,3156.7,3156.1,0.3169]
[1731990323170,3.16798,3156.6,3156.1,0.3169]
[1731990323615,0.8208,3156.5,3156.1,0.3169]
[1731990323819,3.16827,3156.3,3156.1,0.3169]
[1731990324029,3.16827,3156.3,3155.9,0.3169]
[1731990324323,8.65552738,3156.3,3155.9,0.3169]
[1731990324821,3.16837,3156.2,3155.9,0.3169]
[1731990325323,4.6464742,3156.0,3155.7,0.3169]
[1731990326684,5.4179742,3156.0,3155.6,0.3169]
[1731990327033,4.6464742,3155.9,3155.6,0.3169]
[1731990327542,3.98270591,3155.7,3155.6,0.3169]
[1731990327678,4.6464742,3155.9,3155.7,0.3169]
[1731990328700,4.6464742,3155.9,3155.4,0.3169]
[1731990328923,3.98259604,3155.6,3155.4,0.3169]
[1731990329435,3.98259604,3155.6,3155.4,3.48603]
[1731990330223,3.66569604,3155.5,3155.4,3.48603]
[1731990330435,3.66569604,3155.6,3155.5,0.3169]
[1731990331680,3.16867,3155.9,3155.3,0.3169]
[1731990331882,4.64526599,3155.8,3155.3,4.134775]
[1731990332631,4.64526599,3155.8,3155.5,0.3169]
[1731990336022,4.64526599,3155.8,3155.6,0.3169]
[1731990337034,4.64526599,3155.8,3155.2,0.3169]
[1731990337035,3.16889,3155.7,3155.2,0.3169]
[1731990337189,4.64408984,3155.5,3155.2,0.3169]
[1731990338437,3.97916402,3155.3,3155.2,0.3169]
[1731990340100,3.97916402,3155.3,3155.0,0.3169]
[1731990340343,3.66226402,3155.3,3155.0,0.3169]
[1731990341445,7.81008274,3155.6,3155.0,3.48646]
[1731990343300,0.7942,3155.5,3155.0,3.48646]
[1731990343830,0.7942,3155.5,3155.0,0.3169]
[1731990344035,0.7942,3155.5,3155.0,3.48647]
[1731990344601,3.31326733,3155.1,3155.0,3.48647]
[1731990344800,0.7942,3155.5,3155.0,3.99695552]
[1731990344996,0.7942,3155.5,3155.0,3.48647]
[1731990345309,3.3131272,3155.1,3155.0,0.3169]
[1731990345516,3.16926,3155.4,3155.0,0.3169]
[1731990346441,7.14485001,3155.2,3154.7,0.3169]
[1731990346611,3.97547001,3154.9,3154.7,0.3169]
[1731990346853,7.14524001,3154.8,3154.7,0.3169]
[1731990347581,3.16992,3154.7,3154.3,0.3169]
[1731990347789,3.31208933,3154.4,3154.3,3.48716]
[1731990347987,2.64952939,3154.6,3154.4,3.48707]
[1731990348153,2.64952939,3154.6,3154.5,3.70806828]
[1731990348357,2.64952939,3154.7,3154.6,3.48687]
[1731990348664,2.64952939,3154.8,3154.7,3.17027]
[1731990348870,3.31208933,3154.9,3154.7,0.3169]
[1731990349253,3.31208933,3154.8,3154.7,0.3169]
[1731990349461,3.31208933,3154.9,3154.8,3.48667]
[1731990349761,3.31208933,3154.9,3154.8,0.3169]
[1731990349941,3.31208933,3154.9,3154.8,3.48667]
[1731990350681,3.31208933,3154.9,3154.8,4.21922236]
[1731990350902,3.97212001,3155.3,3155.0,0.3169]
[1731990351243,3.30996619,3155.1,3155.0,0.3169]
[1731990352588,3.97212001,3155.3,3154.7,3.4867]
[1731990352746,2.64763968,3154.9,3154.7,3.4867]
[1731990354582,2.64763968,3154.9,3154.7,4.12695655]
[1731990355156,2.64763968,3154.9,3154.8,3.48667]
[1731990355356,3.30962942,3155.0,3154.8,3.48667]
[1731990355593,3.30948503,3155.0,3154.8,3.48667]
[1731990355767,2.64758351,3154.9,3154.8,3.48667]
[1731990356097,2.64759736,3155.0,3154.8,4.21634266]
[1731990356252,2.64759736,3155.0,3154.9,3.48657]
[1731990356654,2.64759736,3155.1,3155.0,3.48647]
[1731990356970,2.64741015,3155.1,3155.0,3.48647]
[1731990357501,3.30948503,3155.2,3155.1,3.48637]
[1731990359082,3.30949304,3155.2,3155.1,3.48637]
[1731990359795,3.30949304,3155.2,3155.1,0.3169]
[1731990359951,3.30949304,3155.2,3155.0,2.85336]
[1731990360150,3.30949304,3155.2,3155.1,0.3167]
[1731990360378,1.1114493,3155.2,3155.1,0.3167]
[1731990360595,4.75217587,3155.2,3154.8,0.3167]
[1731990360794,3.31027195,3154.9,3154.8,0.3167]
[1731990361009,2.64819704,3154.9,3154.8,3.48647]
[1731990361300,3.31027195,3155.1,3154.9,3.48637]
[1731990361301,2.64819704,3155.1,3154.9,3.48637]
[1731990361452,2.64819704,3155.1,3155.0,3.48627]
[1731990362097,2.64819704,3155.2,3155.1,3.48617]
[1731990362391,2.64819704,3155.4,3155.2,3.48607]
[1731990362619,3.31027195,3155.6,3155.4,3.48587]
[1731990362890,2.64859687,3155.5,3155.4,3.48587]
[1731990363953,3.31076113,3155.6,3155.5,3.48576]
[1731990364388,3.31076113,3155.7,3155.6,3.48566]
[1731990364554,2.65007955,3155.7,3155.6,3.48566]
[1731990364760,2.65007955,3155.9,3155.8,3.48546]
[1731990364971,2.65007955,3156.1,3155.9,3.48536]
[1731990365168,2.65007955,3156.1,3156.0,3.48526]
[1731990365498,2.65007955,3156.2,3156.1,3.48516]
[1731990365730,3.31076113,3156.3,3156.1,3.48516]
[1731990365885,3.31076113,3156.3,3156.2,3.48506]
[1731990366936,3.31076113,3156.3,3155.8,0.965432]
[1731990366937,0.7954,3156.4,3156.1,0.3167]
[1731990367088,4.30398947,3156.3,3156.1,0.3167]
[1731990367292,3.97291336,3156.3,3156.1,0.3167]
[1731990367479,3.97291336,3156.2,3155.9,0.3167]
[1731990367823,4.78861336,3156.0,3155.9,0.3167]
[1731990368024,1.61139834,3156.0,3155.9,0.3167]
[1731990368426,6.24903273,3156.0,3155.9,0.3167]
[1731990368741,1.61139834,3156.0,3155.9,0.3167]
[1731990368887,1.61139834,3156.0,3155.5,0.3167]
[1731990369234,3.97610337,3155.8,3155.5,0.3167]
[1731990369928,4.91785964,3155.9,3155.7,3.48556]
[1731990370225,3.97610337,3155.9,3155.8,3.48546]
[1731990370827,3.97610337,3156.1,3155.8,0.3167]
[1731990371026,4.63763439,3156.4,3156.1,3.48516]
[1731990371194,3.97646725,3156.3,3156.1,3.48516]
[1731990371394,3.97646725,3156.2,3156.1,3.48516]
[1731990371601,3.97646725,3156.3,3156.1,3.48516]
[1731990372328,3.97646725,3156.3,3156.2,0.3167]
[1731990372527,3.97646725,3156.3,3156.2,3.48506]
[1731990372727,3.97566685,3156.4,3156.2,3.48506]
[1731990373228,4.74686685,3156.5,3156.3,0.3167]
[1731990374793,4.74686685,3156.5,3156.1,3.48516]
[1731990374988,3.31200623,3156.2,3156.1,0.3167]
[1731990375343,3.16853,3156.1,3155.6,0.3167]
[1731990375496,3.31202161,3155.7,3155.6,0.3167]
[1731990375690,3.97442593,3155.8,3155.3,0.3167]
[1731990376028,3.31243448,3155.4,3155.3,3.48597]
[1731990376230,3.31243448,3155.5,3155.3,3.48597]
[1731990376735,4.76945552,3155.8,3155.3,3.48597]
[1731990376736,3.31243448,3155.4,3155.3,3.48597]
[1731990377474,4.80129831,3155.5,3155.3,0.3167]
[1731990377824,0.8262,3155.5,3155.3,0.3167]
[1731990378938,3.31250812,3155.4,3155.3,3.48593]
[1731990379667,3.31250812,3155.5,3155.4,3.48587]
[1731990379963,4.80129831,3155.7,3155.4,3.48587]
[1731990381172,3.97509831,3155.7,3155.4,3.48587]
[1731990381525,3.31248997,3155.5,3155.4,3.48587]
[1731990382145,3.31261163,3155.5,3155.4,3.48587]
[1731990384236,3.31261163,3155.6,3155.4,3.48587]
[1731990384677,3.31261163,3155.6,3155.5,3.48576]
[1731990386075,3.31261163,3155.6,3155.3,3.16918]
[1731990386076,3.31261163,3155.6,3155.4,0.3167]
[1731990386488,3.31261163,3155.7,3155.4,0.3167]
[1731990386688,3.31261163,3155.6,3155.4,0.3167]
[1731990386931,3.31243668,3155.6,3155.4,0.3167]
[1731990387285,3.31243668,3155.6,3155.4,3.48585]
[1731990388205,3.31252145,3155.6,3155.5,3.48576]
[1731990388406,3.31252145,3155.8,3155.6,3.48566]
[1731990388629,3.31252145,3155.8,3155.7,0.665266]
[1731990388930,3.31252145,3156.0,3155.9,0.3167]
[1731990389239,3.97492402,3156.3,3155.9,0.3167]
[1731990389717,3.97492402,3156.3,3155.9,3.48535]
[1731990389921,3.97492402,3156.2,3155.9,3.48535]
[1731990390118,3.97492402,3156.3,3155.9,3.48535]
[1731990390320,3.97492402,3156.2,3155.8,3.48546]
[1731990390700,3.97492402,3156.2,3155.5,3.16903]
[1731990390701,3.16863,3156.0,3155.6,0.3167]
[1731990390901,3.16879,3155.8,3155.6,0.3167]
[1731990391096,4.76942402,3155.7,3155.6,0.3167]
[1731990391442,0.7945,3155.7,3155.3,0.3167]
[1731990391762,0.7945,3155.7,3155.3,3.48595]
[1731990392099,0.7945,3155.7,3155.3,0.3167]
[1731990392700,4.76934054,3155.7,3155.3,0.3167]
[1731990392912,3.9634,3155.7,3155.3,0.3167]
[1731990393242,0.7945,3155.7,3155.3,3.48595]
[1731990393457,0.7945,3155.7,3155.5,0.3167]
[1731990393608,3.97484054,3155.8,3155.5,3.48568]
[1731990393810,3.97484054,3155.9,3155.7,0.3167]
[1731990394008,3.97484054,3156.0,3155.9,3.48536]
[1731990394333,3.97484054,3156.5,3156.3,0.3167]
[1731990394530,3.97484054,3156.6,3156.4,3.48486]
[1731990394729,3.97484054,3156.5,3156.4,0.3167]
[1731990395755,0.7814,3156.5,3156.0,0.3167]
[1731990395955,3.97546536,3156.3,3156.0,0.3167]
[1731990397207,3.97546536,3156.3,3156.0,3.48525]
[1731990397410,3.97546536,3156.2,3156.0,0.3167]
[1731990397608,3.97546536,3156.3,3156.0,0.3167]
[1731990398147,3.97546536,3156.2,3156.0,0.3167]
[1731990398355,3.97546536,3156.3,3156.0,0.3167]
[1731990398728,3.97546536,3156.3,3156.0,3.48522]
[1731990399043,3.97546536,3156.3,3156.0,0.3167]
[1731990399215,3.97546536,3156.2,3156.1,0.3167]
[1731990399609,3.97672923,3156.2,3156.1,0.3167]
[1731990400147,3.97672923,3156.2,3156.0,0.3167]
[1731990401131,0.7762,3156.1,3155.6,0.3167]
[1731990401334,3.97759666,3155.9,3155.6,0.3167]
[1731990401535,7.80886487,3155.9,3155.6,0.3167]
[1731990401753,1.00720631,3155.8,3155.6,0.3167]
[1731990401937,5.64738118,3155.8,3155.6,0.3167]
[1731990402122,6.25740656,3156.1,3155.6,0.3167]
[1731990402123,7.80883487,3155.9,3155.6,0.3167]
[1731990402326,4.64017487,3155.8,3155.4,0.3167]
[1731990402653,3.97898524,3155.6,3155.4,0.3167]
[1731990403235,3.97898524,3155.5,3155.4,0.3167]
[1731990403639,3.97898524,3155.5,3155.2,3.48604]
[1731990404179,3.97898524,3155.4,3155.2,0.3167]
[1731990404382,0.48090852,3155.4,3155.2,0.3167]
[1731990404536,3.9797474,3155.3,3155.2,0.3167]
[1731990405178,3.6631474,3155.3,3155.2,0.3167]
[1731990405754,3.99907,3155.6,3155.1,0.3167]
[1731990405961,8.64196153,3155.6,3155.1,0.3167]
[1731990406252,9.55255943,3155.6,3155.1,0.3167]
[1731990406556,6.38358943,3155.6,3155.1,3.48614]
[1731990406754,5.47299153,3155.6,3155.1,3.48614]
[1731990407008,4.64289153,3155.7,3155.4,0.3167]
[1731990407549,5.47569153,3155.8,3155.4,3.48586]
[1731990410590,5.47531312,3155.8,3155.4,3.48586]
[1731990410946,8.64414312,3155.8,3155.5,0.3167]
[1731990411255,4.64251312,3155.7,3155.5,0.3167]
[1731990411745,4.64251312,3155.6,3155.5,0.3167]
[1731990411944,4.64251312,3155.6,3155.2,0.3167]
[1731990412171,3.97995964,3155.3,3155.2,0.3167]
[1731990412488,3.97995964,3155.4,3155.2,0.3167]
[1731990413285,3.92995964,3155.4,3155.3,0.3167]
[1731990413588,7.81139312,3155.7,3155.3,0.3167]
[1731990413789,5.87856856,3155.6,3155.3,0.3167]
[1731990414355,5.87856856,3155.6,3155.0,3.16955]
[1731990414356,5.87856856,3155.6,3155.1,0.3167]
[1731990414782,3.16923,3155.4,3155.1,0.3167]
[1731990415092,0.7926,3155.3,3155.1,0.3167]
[1731990415295,0.7926,3155.3,3155.0,0.3167]
[1731990415800,5.43578058,3155.3,3155.0,0.3167]
[1731990416005,0.7926,3155.3,3155.0,0.3167]
[1731990417058,0.7926,3155.3,3155.1,0.3167]
[1731990417253,3.16937,3155.2,3155.1,0.3167]
[1731990417600,7.81255058,3155.2,3155.1,0.3167]
[1731990418099,4.64318058,3155.2,3154.8,0.3167]
[1731990419178,4.64253513,3155.2,3154.8,0.3167]
[1731990419501,3.9788327,3154.9,3154.8,3.48647]
[1731990420304,4.64253513,3155.3,3155.2,0.3167]
[1731990420798,4.64253513,3155.4,3155.2,0.3167]
[1731990421003,4.64253513,3155.5,3155.2,0.3167]
[1731990421298,4.64253513,3155.5,3155.0,3.16949]
[1731990421299,4.64253513,3155.5,3155.1,0.3167]
[1731990421491,3.97930959,3155.2,3155.1,0.3167]
[1731990421692,3.97927991,3155.2,3155.1,0.3167]
[1731990421992,4.64253513,3155.4,3155.1,0.3167]
[1731990422258,5.53957044,3155.4,3155.1,0.3167]
[1731990422454,5.53957044,3155.4,3155.0,0.3167]
[1731990422608,4.64253513,3155.3,3155.0,0.3167]
[1731990423064,0.772,3155.2,3155.0,0.3167]
[1731990423218,6.04540311,3155.2,3155.0,0.3167]
[1731990423415,6.04540311,3155.2,3154.7,0.3167]
[1731990423638,3.97914573,3154.9,3154.7,0.3167]
[1731990424517,3.97914573,3154.8,3154.7,0.3167]
[1731990424919,3.97914573,3154.9,3154.7,0.3167]
[1731990425363,3.66254573,3154.9,3154.7,3.48655]
[1731990425516,5.41424607,3155.2,3154.7,3.48655]
[1731990425715,1.80420185,3155.2,3154.7,3.48655]
[1731990425931,6.44644792,3155.2,3154.7,3.48655]
[1731990426339,0.772,3155.2,3154.9,0.3167]
[1731990426874,5.41424607,3155.2,3154.9,0.3167]
[1731990427039,0.772,3155.2,3154.9,0.3167]
[1731990427452,0.772,3155.2,3154.7,3.48655]
[1731990427975,0.772,3155.2,3154.9,3.48635]
[1731990428133,5.45994084,3155.5,3155.2,0.3167]
[1731990428333,0.8207,3155.5,3155.2,0.3167]
[1731990428581,5.45994084,3155.5,3155.2,0.3167]
[1731990428760,6.32283192,3155.5,3155.2,0.3167]
[1731990428935,9.49190192,3155.5,3155.2,0.3167]
[1731990429132,9.49190192,3155.5,3155.0,0.3167]
[1731990429330,4.63924084,3155.4,3155.0,0.3167]
[1731990429771,9.49190192,3155.5,3155.0,0.3167]
[1731990430279,6.32283192,3155.5,3155.0,3.48625]
[1731990430433,5.45994084,3155.5,3155.0,3.48625]
[1731990430636,5.45994084,3155.5,3155.0,2.85355]
[1731990431333,3.97561675,3155.2,3154.7,3.16984]
[1731990431539,3.31309017,3154.9,3154.8,3.1697]
[1731990432679,3.31288206,3154.9,3154.8,3.16977]
[1731990433594,3.31288206,3154.9,3154.5,3.17004]
[1731990433755,3.31303471,3154.7,3154.3,3.17023]
[1731990433956,3.31303471,3154.6,3154.4,3.17016]
[1731990434362,3.31303471,3154.7,3154.5,3.17007]
[1731990434564,3.31303471,3154.8,3154.5,3.17007]
[1731990434762,3.31303471,3154.8,3154.7,3.16987]
[1731990434965,3.31303471,3154.9,3154.7,3.16987]
[1731990435890,3.97545848,3155.1,3154.8,0.3167]
[1731990436096,3.97545848,3155.1,3154.8,3.48647]
[1731990436297,3.31337658,3154.9,3154.8,3.48647]
[1731990436458,3.97545848,3155.1,3154.8,3.48647]
[1731990437168,3.97545848,3155.1,3155.0,0.3167]
[1731990437366,3.97593994,3155.2,3155.0,0.3167]
[1731990439016,3.97593994,3155.2,3155.1,0.3167]
[1731990439167,7.8079366,3155.3,3155.1,0.3167]
[1731990439360,3.561524,3155.3,3155.1,0.3167]
[1731990439555,8.2001206,3155.3,3155.1,0.3167]
[1731990439903,3.561524,3155.3,3155.1,0.3167]
[1731990440084,8.2001206,3155.3,3154.8,0.3167]
[1731990440397,3.97630515,3155.1,3154.8,0.3167]
[1731990441876,3.97630515,3155.1,3155.0,0.3167]
[1731990442089,3.97630515,3155.1,3155.0,3.834898]
[1731990442294,3.97782271,3155.4,3155.3,3.48597]
[1731990442788,3.97782271,3155.5,3155.3,3.48597]
[1731990443190,3.97782271,3155.4,3155.3,0.3167]
[1731990443391,3.97782271,3155.4,3155.3,3.48597]
[1731990443600,3.97782271,3155.4,3155.1,3.16945]
[1731990443601,3.97782271,3155.4,3155.2,0.3167]
[1731990444279,3.97782271,3155.3,3155.2,0.3167]
[1731990444651,3.97782271,3155.3,3155.2,3.48607]
[1731990444908,3.97782271,3155.4,3155.2,4.151633]
[1731990445214,3.97782271,3155.3,3155.2,4.151633]
[1731990445383,3.97782271,3155.3,3155.2,3.48607]
[1731990445877,3.97782271,3155.4,3155.2,3.48607]
[1731990446082,3.97782271,3155.3,3155.2,3.48607]
[1731990446811,3.98013,3155.9,3155.2,3.48607]
[1731990446996,3.98227775,3155.3,3155.2,3.48607]
[1731990447168,4.64599071,3155.5,3155.2,3.48607]
[1731990447373,4.64599071,3155.5,3155.4,3.48587]
[1731990447617,4.64599071,3155.6,3155.4,3.48587]
[1731990449011,4.64599071,3155.6,3155.3,0.3167]
[1731990450306,4.64599071,3155.5,3155.3,0.3167]
[1731990450683,4.64599071,3155.5,3155.4,0.3167]
[1731990451420,3.16898,3155.6,3155.4,0.3167]
[1731990451601,3.97766,3155.5,3154.9,0.3167]
[1731990451773,3.98391879,3155.0,3154.9,0.3167]
[1731990453059,6.2989307,3155.5,3154.9,0.3167]
[1731990453060,4.64790526,3155.2,3154.9,0.3167]
[1731990453241,5.45650526,3155.1,3154.7,0.3167]
[1731990453562,4.64790526,3155.0,3154.7,0.3167]
[1731990454317,4.64790526,3155.0,3154.7,3.48655]
[1731990454523,4.64790526,3155.0,3154.7,0.3167]
[1731990454815,3.98442741,3154.8,3154.7,3.48654]
[1731990455036,3.98442741,3154.8,3154.7,0.3167]
[1731990455624,3.98442741,3154.8,3154.7,3.48657]
[1731990456334,4.64790526,3155.0,3154.7,3.48657]
[1731990456538,3.98498094,3154.8,3154.7,3.48657]
[1731990456923,3.98498658,3154.8,3154.7,3.48657]
[1731990457369,0.8086,3155.3,3154.7,3.48657]
[1731990457370,3.98498658,3154.9,3154.8,3.48647]
[1731990457527,4.64790526,3155.1,3154.8,3.48647]
[1731990457734,4.64790526,3155.1,3154.8,0.3167]
[1731990457932,3.98503501,3154.9,3154.8,3.48641]
[1731990458540,4.64790526,3155.1,3154.8,3.48641]
[1731990458815,0.8086,3155.3,3154.8,3.48641]
[1731990458816,3.98512355,3154.9,3154.8,3.48641]
[1731990459043,4.64790526,3155.1,3154.8,3.48641]
[1731990459245,4.64790526,3155.2,3155.0,3.48627]
[1731990459468,4.64790526,3155.2,3155.0,0.3167]
[1731990460258,4.64790526,3155.2,3154.9,0.3167]
[1731990460884,4.64790526,3155.1,3154.9,0.3167]
[1731990462976,0.49535929,3155.1,3154.9,0.3167]
[1731990463989,0.49535929,3155.1,3155.0,3.48627]
[1731990464160,3.98537476,3155.2,3155.0,3.48627]
[1731990464491,3.98537476,3155.2,3155.1,3.48617]
[1731990464796,3.98537476,3155.2,3155.1,4.151744]
[1731990466092,4.64887419,3155.5,3155.3,0.3167]
[1731990467347,4.64887419,3155.4,3155.3,0.3167]
[1731990467500,4.64887419,3155.5,3155.3,0.3167]
[1731990467699,4.64887419,3155.5,3155.3,3.48596]
[1731990467945,4.64887419,3155.6,3155.3,3.48596]
[1731990470899,4.64887419,3155.5,3155.3,3.48596]
[1731990471120,4.64806229,3155.6,3155.3,3.48596]
[1731990472133,3.98383799,3155.4,3155.3,3.48596]
[1731990472341,4.64806229,3155.6,3155.3,3.48596]
[1731990473031,4.64806229,3155.6,3155.2,0.3167]
[1731990473231,4.64806229,3155.5,3155.2,0.3167]
[1731990474630,4.64806229,3155.4,3155.2,0.3167]
[1731990475160,4.64806229,3155.5,3155.2,0.3167]
[1731990475866,4.64821795,3155.5,3155.0,0.3167]
[1731990476034,3.9841252,3155.2,3155.0,3.48626]
[1731990476239,3.9841252,3155.2,3155.1,3.48617]
[1731990476923,3.9841252,3155.3,3155.1,3.48617]
[1731990477283,3.9841252,3155.3,3155.2,0.3167]
[1731990477284,8.21590047,3155.3,3155.2,0.3167]
[1731990477567,0.39841252,3155.3,3155.2,0.3167]
[1731990478319,5.04680021,3155.3,3155.2,0.3167]
[1731990478515,0.8134,3155.4,3155.2,0.3167]
[1731990479335,0.8134,3155.4,3155.0,0.3167]
[1731990479657,4.64847345,3155.2,3155.0,0.3167]
[1731990479862,4.64847345,3155.2,3154.9,3.16963]
[1731990479863,4.64847345,3155.3,3155.2,0.3167]
[1731990480068,4.64847345,3155.4,3155.2,0.3167]
[1731990480251,4.64847345,3155.3,3155.2,0.3167]
[1731990480622,4.64845733,3155.4,3155.2,0.3167]
[1731990480818,4.64845733,3155.3,3155.2,0.3167]
[1731990481139,4.64845733,3155.4,3155.3,0.3167]
[1731990481336,4.64845733,3155.5,3155.3,0.3167]
[1731990481545,4.64845733,3155.4,3155.3,0.3167]
[1731990482277,0.8134,3155.6,3155.3,0.3167]
[1731990482278,4.64845733,3155.5,3155.3,0.3167]
[1731990482491,4.64845733,3155.5,3155.2,3.16928]
[1731990482492,4.64845733,3155.5,3155.1,0.3167]
[1731990482695,4.64845733,3155.4,3155.1,0.3167]
[1731990483094,8.36387306,3155.4,3155.1,0.3167]
[1731990483399,4.64845733,3155.3,3155.1,0.3167]
[1731990483564,4.64845733,3155.3,3154.9,0.3167]
[1731990483750,3.98477121,3155.0,3154.9,0.3167]
[1731990483952,3.98477593,3155.0,3154.9,0.3167]
[1731990484250,3.93477593,3155.0,3154.9,0.3167]
[1731990485252,4.64890525,3155.2,3154.9,0.3167]
[1731990485683,4.64890525,3155.3,3154.9,3.48634]
[1731990485995,4.64890525,3155.3,3155.1,3.48617]
[1731990486209,4.64890525,3155.3,3155.1,0.3167]
[1731990486896,4.64890525,3155.3,3155.0,0.3167]
[1731990487095,4.64890525,3155.3,3155.0,3.48626]
[1731990487309,4.64890525,3155.4,3155.2,0.3167]
[1731990488092,4.64890525,3155.4,3155.2,3.48606]
[1731990488703,5.49207761,3155.7,3155.2,4.151622]
[1731990489017,4.64937787,3155.6,3155.2,3.48606]
[1731990490074,4.64937787,3155.6,3155.1,0.3167]
[1731990490274,3.9848759,3155.2,3155.1,0.3167]
[1731990490717,4.64937787,3155.4,3155.1,0.3167]